bitfinex/quotes_SOLUSD_20251013
["timestamp","ask_amount","ask_price","bid_price","bid_amount"]
[1760343289765,0.69,197.46,197.44,5.06457925]
[1760343290214,2.56303178,197.49,197.44,17.7266538]
[1760343290489,3.25303178,197.48,197.44,17.7266538]
[1760343290789,0.2,197.52,197.47,2.56303178]
[1760343290992,0.2,197.52,197.51,2.56303178]
[1760343291292,0.2,197.52,197.51,7.62606656]
[1760343291475,0.2,197.52,197.51,5.06303478]
[1760343292187,0.89,197.52,197.5,5.06328122]
[1760343292486,3.25303178,197.51,197.46,12.66033372]
[1760343292977,0.69,197.51,197.47,12.6601509]
[1760343293159,0.10464383,197.48,197.47,12.6601509]
[1760343296279,0.10464383,197.48,197.47,15.22318268]
[1760343296581,0.10464383,197.48,197.47,12.6601509]
[1760343297179,0.10464383,197.48,197.47,17.72421126]
[1760343297564,0.10464383,197.48,197.47,5.06406036]
[1760343297786,3.35767561,197.48,197.47,5.06406036]
[1760343299080,3.35767561,197.48,197.44,12.66170485]
[1760343299276,0.10464383,197.48,197.44,12.66170485]
[1760343299482,0.10464383,197.48,197.44,13.37170485]
[1760343299802,0.79464383,197.48,197.44,12.66170485]
[1760343300285,0.10464383,197.48,197.47,2.56303178]
[1760343300694,0.10464383,197.48,197.46,2.56303178]
[1760343301079,0.10464383,197.48,197.44,12.66170485]
[1760343301080,0.10464383,197.48,197.47,8.33709214]
[1760343302376,3.35767561,197.48,197.45,5.0645733]
[1760343302708,3.25303178,197.47,197.45,5.0645733]
[1760343302894,24.05303178,197.46,197.42,5.06534292]
[1760343303192,20.8,197.47,197.42,2.56303178]
[1760343303390,20.8,197.47,197.43,3.27303178]
[1760343303598,0.10464383,197.48,197.46,2.56303178]
[1760343303785,0.10464383,197.48,197.47,2.56303178]
[1760343304092,0.10464383,197.48,197.47,3.27303178]
[1760343304595,1e-08,197.5,197.47,3.77943781]
[1760343304806,0.10037516,197.51,197.47,3.77943781]
[1760343304807,1e-08,197.51,197.49,2.56303178]
[1760343304976,1e-08,197.51,197.5,2.56303178]
[1760343305173,1e-08,197.52,197.5,7.62632291]
[1760343305390,1e-08,197.52,197.51,4.71147599]
[1760343306184,1e-08,197.52,197.5,5.06329113]
[1760343306397,1e-08,197.52,197.51,0.71]
[1760343306702,1e-08,197.52,197.51,4.71147599]
[1760343307199,1e-08,197.52,197.51,5.77303478]
[1760343307399,1e-08,197.52,197.51,15.31200887]
[1760343308092,1e-08,197.52,197.51,5.77303478]
[1760343308791,1e-08,197.52,197.51,5.06303478]
[1760343311001,0.69000001,197.52,197.51,5.06303478]
[1760343311710,1e-08,197.52,197.51,5.06303478]
[1760343312734,1e-08,197.52,197.49,17.72241632]
[1760343313213,0.10103721,197.5,197.49,17.72241632]
[1760343314096,0.10103721,197.5,197.49,18.43241632]
[1760343314396,0.10103721,197.5,197.46,12.66040723]
[1760343314397,10.3300113,197.5,197.46,12.66040723]
[1760343314703,9.53897409,197.47,197.45,5.46]
[1760343315000,9.53897409,197.47,197.46,5.06431682]
[1760343315385,9.53897409,197.48,197.46,5.06431682]
[1760343315786,20.90103721,197.5,197.46,5.06431682]
[1760343316001,10.22897409,197.49,197.46,5.06431682]
[1760343316193,0.69,197.48,197.46,5.06431682]
[1760343316595,10.22897409,197.48,197.46,5.06431682]
[1760343316903,0.67,197.47,197.46,5.06431682]
[1760343317082,10.20897409,197.47,197.46,5.06431682]
[1760343318199,10.20897409,197.47,197.45,10.52445544]
[1760343318398,30.33897409,197.47,197.45,5.06445544]
[1760343318707,9.53897409,197.46,197.45,5.06445544]
[1760343319078,10.20897409,197.46,197.45,5.06445544]
[1760343319994,10.20897409,197.46,197.42,12.66319727]
[1760343321208,10.20897409,197.45,197.42,12.66319727]
[1760343321399,0.67,197.44,197.42,12.66319727]
[1760343321697,10.20897409,197.43,197.41,5.06559951]
[1760343321885,9.53897409,197.42,197.41,5.06559951]
[1760343322093,10.20897409,197.43,197.41,5.06559951]
[1760343322293,9.53897409,197.42,197.41,5.06559951]
[1760343322492,9.53897409,197.45,197.41,5.76559951]
[1760343322696,9.53897409,197.45,197.41,17.72959829]
[1760343322896,10.20897409,197.45,197.41,17.72959829]
[1760343323407,0.67,197.44,197.41,12.66399878]
[1760343323610,0.67,197.43,197.41,12.66399878]
[1760343323907,10.20897409,197.43,197.41,12.66399878]
[1760343324607,9.53897409,197.43,197.38,17.73229302]
[1760343324808,9.53897409,197.43,197.38,18.43229302]
[1760343325016,9.53897409,197.41,197.38,98.13229302]
[1760343325494,31.00897409,197.42,197.38,17.73229302]
[1760343325698,30.33897409,197.42,197.38,17.73229302]
[1760343325884,0.67,197.48,197.41,9.53897409]
[1760343326087,10.20897409,197.48,197.42,10.23897409]
[1760343326287,0.10655091,197.51,197.46,9.53897409]
[1760343326601,0.10655091,197.51,197.48,5.06380392]
[1760343326907,0.10655091,197.51,197.49,0.7]
[1760343327084,0.10655091,197.51,197.49,10.23897409]
[1760343327284,0.10655091,197.51,197.49,9.53897409]
[1760343327488,0.10655091,197.51,197.48,14.60277801]
[1760343327788,0.10655091,197.51,197.48,15.30277801]
[1760343327988,0.10655091,197.51,197.49,0.7]
[1760343328314,0.10655091,197.51,197.48,5.06380392]
[1760343328609,0.10655091,197.51,197.49,10.23897409]
[1760343329896,1e-08,197.51,197.49,10.23897409]
[1760343330211,1e-08,197.52,197.5,10.23897409]
[1760343330386,1e-08,197.52,197.51,9.53897409]
[1760343330586,1e-08,197.52,197.51,5.76303478]
[1760343330891,1e-08,197.53,197.51,15.30200887]
[1760343331090,1e-08,197.53,197.52,0.7]
[1760343331291,1e-08,197.53,197.52,10.23897409]
[1760343331487,1e-08,197.53,197.51,5.06303478]
[1760343331812,1e-08,197.53,197.51,5.76303478]
[1760343331987,1e-08,197.53,197.51,15.30200887]
[1760343332704,1e-08,197.53,197.52,15.30175254]
[1760343333092,0.10569382,197.53,197.52,5.76277845]
[1760343333291,0.10569382,197.53,197.52,15.30175254]
[1760343333689,0.10569382,197.53,197.52,5.76277845]
[1760343333921,0.10569382,197.53,197.52,5.06277845]
[1760343334611,0.10569381,197.53,197.52,5.06277845]
[1760343334816,0.10569381,197.53,197.51,5.06303478]
[1760343335114,0.67,197.52,197.44,5.06482982]
[1760343335286,10.20897409,197.51,197.44,17.72641704]
[1760343335482,10.20897409,197.51,197.45,9.53897409]
[1760343335708,0.67,197.51,197.45,9.53897409]
[1760343336012,10.20897409,197.51,197.45,9.53897409]
[1760343336403,10.20897409,197.51,197.46,5.06431682]
[1760343336593,10.20897409,197.5,197.46,5.06431682]
[1760343337307,9.53897409,197.47,197.46,5.06431682]
[1760343337604,10.20897409,197.47,197.46,5.06431682]
[1760343337808,10.20897409,197.47,197.41,9.53897409]
[1760343337997,0.67,197.47,197.41,9.53897409]
[1760343338310,0.67,197.47,197.42,12.6633573]
[1760343338516,20.8,197.49,197.45,9.53897409]
[1760343338816,20.8,197.49,197.45,10.23897409]
[1760343339413,9.53897409,197.51,197.48,9.53897409]
[1760343339414,20.8,197.51,197.48,9.53897409]
[1760343339597,0.10569381,197.53,197.49,9.53897409]
[1760343339804,0.10569381,197.53,197.48,10.23897409]
[1760343340108,0.77569381,197.53,197.48,9.53897409]
[1760343340314,0.77569381,197.53,197.48,10.23897409]
[1760343340515,0.77569381,197.53,197.49,5.06354752]
[1760343341213,10.20897409,197.52,197.49,5.06354752]
[1760343342100,30.33897409,197.5,197.46,5.06431682]
[1760343342305,9.53897409,197.48,197.46,5.06431682]
[1760343342920,9.53897409,197.48,197.42,10.23897409]
[1760343344008,9.53897409,197.48,197.43,17.72780224]
[1760343344203,10.20897409,197.49,197.43,18.42780224]
[1760343345321,30.33897409,197.5,197.44,10.22897409]
[1760343345901,9.53897409,197.49,197.44,0.69]
[1760343346103,9.53897409,197.48,197.43,17.72780224]
[1760343346605,10.20897409,197.49,197.43,27.95677633]
[1760343347126,10.20897409,197.49,197.43,18.41780224]
[1760343347827,9.53897409,197.47,197.43,18.41780224]
[1760343348000,10.22897409,197.46,197.43,17.72780224]
[1760343348606,9.53897409,197.46,197.43,17.72780224]
[1760343349125,9.53897409,197.46,197.43,12.66271589]
[1760343349318,30.33897409,197.44,197.39,5.0658876]
[1760343349526,9.53897409,197.41,197.39,5.0658876]
[1760343349823,9.53897409,197.4,197.37,5.06637678]
[1760343350023,0.69,197.39,197.37,5.06637678]
[1760343350202,20.8,197.42,197.38,0.67]
[1760343350401,9.53897409,197.4,197.37,5.06637678]
[1760343350624,9.53897409,197.41,197.37,5.06637678]
[1760343350810,10.22897409,197.41,197.37,5.06637678]
[1760343351006,10.22897409,197.4,197.35,5.06713959]
[1760343351207,10.22897409,197.39,197.35,5.06713959]
[1760343351406,10.87647521,197.41,197.36,0.67]
[1760343351626,20.8,197.39,197.36,0.67]
[1760343352527,30.33897409,197.39,197.35,17.73498858]
[1760343352923,10.22897409,197.38,197.35,17.73498858]
[1760343353126,0.09308834,197.36,197.35,17.73498858]
[1760343353309,0.09308834,197.36,197.35,27.94396267]
[1760343353625,0.10563777,197.38,197.35,27.94396267]
[1760343353825,1e-08,197.39,197.37,9.53897409]
[1760343354011,1e-08,197.39,197.38,9.53897409]
[1760343354518,1e-08,197.39,197.38,10.20897409]
[1760343355023,1e-08,197.39,197.38,15.27534352]
[1760343357622,1e-08,197.4,197.38,15.27534352]
[1760343357824,1e-08,197.42,197.39,10.20897409]
[1760343358127,0.09462031,197.45,197.41,9.53897409]
[1760343358431,0.09462031,197.45,197.43,9.53897409]
[1760343358929,0.09462031,197.45,197.43,10.20897409]
[1760343359415,0.09462031,197.45,197.43,15.27406044]
[1760343359623,1e-08,197.44,197.43,15.27406044]
[1760343360731,1e-08,197.45,197.43,15.27406044]
[1760343360932,1e-08,197.45,197.44,10.20897409]
[1760343361116,1e-08,197.45,197.44,31.00897409]
[1760343361529,1e-08,197.45,197.44,36.07380391]
[1760343362038,1e-08,197.45,197.44,46.95027912]
[1760343362325,0.1,197.56,197.54,9.53897409]
[1760343362536,0.1,197.56,197.55,9.53897409]
[1760343362913,0.1,197.56,197.54,9.53897409]
[1760343363115,0.1,197.56,197.55,9.53897409]
[1760343363322,0.69,197.61,197.55,10.20897409]
[1760343363634,0.69,197.61,197.58,17.71434355]
[1760343363635,21.49,197.61,197.58,17.71434355]
[1760343364142,0.69,197.61,197.58,17.71434355]
[1760343364314,0.1,197.63,197.59,9.53897409]
[1760343364508,0.1,197.63,197.6,9.53897409]
[1760343364813,0.1,197.63,197.62,9.53897409]
[1760343365437,0.1,197.63,197.61,9.53897409]
[1760343365730,0.1,197.63,197.62,5.06021657]
[1760343366520,0.79,197.63,197.62,5.06021657]
[1760343366733,0.79,197.63,197.61,5.0604655]
[1760343367031,31.02897409,197.62,197.58,5.06103421]
[1760343367333,10.22897409,197.61,197.58,5.06103421]
[1760343367536,0.69,197.6,197.58,5.06103421]
[1760343367755,7.09152707,197.59,197.5,0.67]
[1760343368056,6.40152707,197.58,197.52,6.40152707]
[1760343368335,31.67647521,197.61,197.54,6.40152707]
[1760343368336,6.40152707,197.6,197.54,6.40152707]
[1760343368519,0.69,197.59,197.54,6.40152707]
[1760343368720,0.69,197.58,197.52,6.40152707]
[1760343368920,21.49,197.58,197.52,6.40152707]
[1760343369139,21.49,197.58,197.53,6.40152707]
[1760343369741,21.49,197.58,197.54,17.71793054]
[1760343369924,21.49,197.58,197.54,98.11793054]
[1760343370126,0.69,197.57,197.54,98.11793054]
[1760343370528,20.8,197.58,197.54,98.11793054]
[1760343370731,0.69,197.6,197.55,7.07152707]
[1760343370921,0.69,197.59,197.54,104.51945761]
[1760343371415,0.69,197.59,197.54,98.11793054]
[1760343371839,0.69,197.59,197.54,104.51945761]
[1760343372222,0.69,197.59,197.54,98.11793054]
[1760343373031,0.10376488,197.55,197.54,98.11793054]
[1760343373328,0.10376488,197.55,197.54,98.78793054]
[1760343373834,0.10376488,197.55,197.54,105.18945761]
[1760343374033,0.10376488,197.55,197.54,98.78793054]
[1760343374338,0.10376488,197.55,197.54,105.18945761]
[1760343375540,0.10936724,197.56,197.54,105.18945761]
[1760343375734,0.10936724,197.56,197.55,7.07152707]
[1760343376129,0.10936724,197.56,197.55,92.53353668]
[1760343377041,0.10936724,197.56,197.55,12.13353668]
[1760343377219,0.10936724,197.56,197.55,12.17353668]
[1760343377423,0.10904358,197.57,197.55,92.57353668]
[1760343377618,0.10904358,197.57,197.56,7.11152707]
[1760343377944,0.10904358,197.57,197.56,81.11]
[1760343378142,0.10904358,197.57,197.56,5.77175339]
[1760343378638,0.09351363,197.58,197.56,5.77175339]
[1760343379048,0.09351363,197.58,197.57,7.11152707]
[1760343379246,0.09351363,197.58,197.57,12.17302426]
[1760343379830,0.10916113,197.61,197.57,24.82676723]
[1760343380134,0.10916113,197.61,197.59,6.40152707]
[1760343380524,0.10916113,197.61,197.6,7.11152707]
[1760343381337,0.10916113,197.61,197.6,12.17225581]
[1760343381654,0.10916113,197.61,197.6,5.06072874]
[1760343383351,0.10916113,197.61,197.6,12.17225581]
[1760343383861,1e-08,197.61,197.6,12.17225581]
[1760343386640,1e-08,197.62,197.6,12.17225581]
[1760343386837,1e-08,197.62,197.61,6.40152707]
[1760343387437,1e-08,197.62,197.61,3.26892067]
[1760343387837,1e-08,197.62,197.61,7.61939331]
[1760343389153,1e-08,197.62,197.61,5.06047264]
[1760343389549,1e-08,197.62,197.61,7.61939331]
[1760343391254,1e-08,197.62,197.6,5.06072874]
[1760343391448,1e-08,197.62,197.61,2.55892067]
[1760343391640,1e-08,197.62,197.61,3.26892067]
[1760343391842,1e-08,197.62,197.61,2.55892067]
[1760343392964,1e-08,197.62,197.61,7.61939331]
[1760343393266,0.09877075,197.62,197.61,7.61939331]
[1760343394649,0.09877074,197.62,197.61,7.61939331]
[1760343394962,0.19204032,197.63,197.61,8.32939331]
[1760343395159,1e-08,197.67,197.62,24.06892067]
[1760343395458,0.7,197.77,197.66,23.35892067]
[1760343395673,2.6431317,197.78,197.76,2.55892067]
[1760343395967,0.7,197.85,197.8,2.55892067]
[1760343396156,0.7,197.84,197.8,2.55892067]
[1760343396671,0.7,197.84,197.79,2.55892067]
[1760343396874,0.7,197.84,197.81,5.05535614]
[1760343397161,0.7,197.84,197.81,17.69374651]
[1760343397360,0.7,197.86,197.81,24.0783472]
[1760343397541,0.7,197.85,197.81,24.0783472]
[1760343398844,27.18460069,197.83,197.76,0.71]
[1760343399170,6.38460069,197.82,197.76,7.09460069]
[1760343399368,7.08460069,197.82,197.76,7.09460069]
[1760343399662,0.7,197.82,197.77,24.08192586]
[1760343399860,0.7,197.82,197.77,24.79192586]
[1760343400440,0.7,197.82,197.78,6.38460069]
[1760343400847,0.7,197.82,197.79,5.05586733]
[1760343402555,27.18460069,197.83,197.79,5.05586733]
[1760343402778,21.5,197.83,197.79,5.05586733]
[1760343403151,20.8,197.83,197.81,6.38460069]
[1760343403376,10.87647521,197.87,197.82,6.38460069]
[1760343403671,0.7,197.87,197.82,6.38460069]
[1760343403870,20.8,197.85,197.83,6.38460069]
[1760343404049,20.8,197.85,197.81,6.38460069]
[1760343404252,0.7,197.87,197.82,6.38460069]
[1760343404464,0.7,197.87,197.83,6.38460069]
[1760343404683,10.87647521,197.91,197.84,6.38460069]
[1760343404684,0.7,197.89,197.84,6.38460069]
[1760343404846,0.7,197.89,197.84,7.06460069]
[1760343405142,20.8,197.87,197.85,5.05433409]
[1760343405347,17.2610759,197.91,197.85,12.11893478]
[1760343405651,20.8,197.88,197.85,24.07477]
[1760343406057,20.8,197.88,197.85,24.75477]
[1760343406251,20.8,197.91,197.85,17.69016931]
[1760343406462,6.38460069,197.93,197.87,6.38460069]
[1760343406681,7.09460069,197.93,197.87,6.38460069]
[1760343406972,20.8,197.91,197.88,6.38460069]
[1760343407270,0.71,197.93,197.89,17.68659355]
[1760343407467,20.8,197.91,197.89,17.68659355]
[1760343407776,0.71,197.96,197.89,24.76119424]
[1760343408145,20.8,197.93,197.9,6.38460069]
[1760343408580,27.18460069,197.94,197.89,17.68659355]
[1760343408876,21.51,197.94,197.89,24.76119424]
[1760343409376,21.51,197.94,197.9,6.38460069]
[1760343409559,20.8,197.94,197.9,6.38460069]
[1760343409763,20.8,197.94,197.89,24.76119424]
[1760343409978,7.09460069,197.93,197.89,5.05331244]
[1760343410472,7.09460069,197.93,197.83,25.27395342]
[1760343410473,6.38460069,197.9,197.84,11.43919025]
[1760343410677,20.8,197.91,197.85,19.02006468]
[1760343410850,27.89460069,197.91,197.85,19.02006468]
[1760343411363,6.38460069,197.89,197.83,5.05484506]
[1760343411560,20.8,197.87,197.82,10.51508561]
[1760343411869,7.09460069,197.86,197.82,10.51508561]
[1760343412059,27.18460069,197.87,197.82,11.20508561]
[1760343412378,38.0610759,197.9,197.84,6.38460069]
[1760343412595,20.8,197.9,197.86,6.38460069]
[1760343412883,6.38460069,197.98,197.89,6.38460069]
[1760343413085,0.71,197.99,197.94,6.38460069]
[1760343413252,0.09181144,197.96,197.95,12.12638144]
[1760343413750,2.63999338,198.04,197.95,24.75583332]
[1760343413951,6.48460069,198.03,197.96,0.69]
[1760343414159,6.38460069,198.01,197.96,0.69]
[1760343414354,6.38460069,198.0,197.95,5.05178075]
[1760343414697,20.8,198.02,197.95,17.68123263]
[1760343414860,10.97647521,198.03,197.95,17.68123263]
[1760343414861,21.51,198.0,197.95,5.05178075]
[1760343415186,6.38460069,198.01,197.95,12.12638144]
[1760343415377,20.8,198.0,197.96,6.38460069]
[1760343415694,20.8,198.0,197.97,6.38460069]
[1760343415991,0.71,198.02,197.97,0.69]
[1760343416166,20.8,198.0,197.97,7.07460069]
[1760343416487,0.71,198.02,197.97,7.07460069]
[1760343417091,20.9,198.03,197.99,6.38460069]
[1760343417388,21.61,198.03,197.97,11.43587108]
[1760343417585,20.9,198.03,197.98,7.07460069]
[1760343417820,27.99460069,198.03,197.97,17.67944637]
[1760343418370,0.1,198.03,198.0,6.38460069]
[1760343418587,20.9,198.03,197.97,18.36944637]
[1760343418798,0.71,198.02,197.97,5.05127039]
[1760343419093,20.8,198.01,197.97,5.05127039]
[1760343419264,20.8,198.01,197.97,5.74127039]
[1760343419679,20.8,198.01,197.97,0.69]
[1760343419860,20.8,198.01,197.96,6.38460069]
[1760343420066,20.8,198.01,197.97,7.07460069]
[1760343420273,20.8,198.01,197.98,7.07460069]
[1760343420670,20.8,198.01,197.97,6.38460069]
[1760343420895,20.8,198.01,197.96,0.69]
[1760343421060,0.1,198.03,197.99,6.38460069]
[1760343421260,0.1,198.03,198.01,5.05024998]
[1760343422199,0.1,198.03,198.01,11.43485067]
[1760343422779,0.81,198.03,198.01,5.05024998]
[1760343422991,0.1,198.03,198.01,5.05024998]
[1760343423508,0.1,198.03,198.0,6.38460069]
[1760343423684,0.1,198.03,198.01,7.07460069]
[1760343424381,0.1,198.03,198.01,0.69]
[1760343424987,0.1,198.03,197.99,17.67741402]
[1760343424988,0.81,198.03,197.99,17.67741402]
[1760343425314,0.1,198.03,197.99,17.67741402]
[1760343425609,0.1,198.03,198.0,0.69]
[1760343426797,0.1,198.03,198.01,5.05024998]
[1760343427111,7.19460069,198.03,197.97,7.07460069]
[1760343427283,0.1,198.03,197.98,6.38460069]
[1760343427605,3.25935115,198.02,197.96,17.67982648]
[1760343428006,2.54935115,198.01,197.96,5.05152556]
[1760343428317,3.25935115,198.0,197.96,5.05152556]
[1760343428518,2.54935115,197.97,197.85,10.87647521]
[1760343428803,23.34935115,197.98,197.92,17.68391268]
[1760343429005,23.34935115,197.98,197.92,5.05254648]
[1760343429006,2.54935115,197.96,197.92,5.05254648]
[1760343429210,3.25935115,197.95,197.9,5.05290611]
[1760343429390,31.01240234,197.95,197.9,5.05290611]
[1760343429585,10.21240234,197.94,197.9,5.05290611]
[1760343429801,0.71,197.94,197.9,5.05290611]
[1760343430702,10.21240234,197.94,197.89,17.68638047]
[1760343430881,9.50240234,197.92,197.87,5.0536001]
[1760343431082,9.50240234,197.91,197.87,5.0536001]
[1760343431282,9.50240234,197.89,197.87,5.0536001]
[1760343431483,9.50240234,197.89,197.83,12.63664916]
[1760343431700,0.71,197.88,197.81,0.69]
[1760343431910,9.50240234,197.87,197.81,0.69]
[1760343432208,9.50240234,197.85,197.77,0.69]
[1760343432382,10.87647521,197.87,197.79,9.50240234]
[1760343432584,9.50240234,197.85,197.81,5.05535614]
[1760343432827,10.21240234,197.85,197.81,5.05535614]
[1760343433197,0.09681916,197.82,197.81,5.05535614]
[1760343433506,0.09681916,197.82,197.81,14.55775848]
[1760343433884,0.09681916,197.82,197.81,15.24775848]
[1760343434706,0.09529679,197.85,197.81,27.88614885]
[1760343434903,0.09529679,197.85,197.84,9.50240234]
[1760343435491,0.09197466,197.89,197.85,9.50240234]
[1760343435694,0.09197466,197.89,197.85,0.69]
[1760343435997,0.09197466,197.89,197.86,9.50240234]
[1760343436625,0.09197466,197.89,197.86,15.23648098]
[1760343437003,0.09197466,197.89,197.86,14.55648098]
[1760343437199,0.09197466,197.89,197.86,5.05407864]
[1760343437429,10.26541389,197.87,197.84,5.05434999]
[1760343437733,10.26541389,197.87,197.76,5.46]
[1760343437734,10.87647521,197.84,197.76,5.46]
[1760343438029,10.87647521,197.77,197.76,5.46]
[1760343438414,11.53647521,197.77,197.76,5.46]
[1760343438736,21.03887755,197.77,197.76,5.46]
[1760343439025,26.09525617,197.77,197.76,5.46]
[1760343439243,21.03887755,197.77,197.76,5.46]
[1760343440830,10.87647521,197.77,197.76,5.46]
[1760343441527,10.87647521,197.81,197.76,20.69903664]
[1760343441830,10.87647521,197.81,197.76,33.3406224]
[1760343442008,9.50240234,197.79,197.76,10.5166343]
[1760343442330,20.8,197.82,197.76,10.5166343]
[1760343442331,9.50240234,197.77,197.76,5.46]
[1760343442517,10.16240234,197.77,197.76,5.46]
[1760343444333,10.87647521,197.73,197.64,5.05970451]
[1760343444510,9.50240234,197.69,197.64,5.05970451]
[1760343444712,10.16240234,197.68,197.64,5.05970451]
[1760343444913,0.66,197.67,197.61,27.21371884]
[1760343445117,9.50240234,197.64,197.61,5.06047264]
[1760343445312,9.50240234,197.64,197.59,5.06075243]
[1760343445514,20.37887755,197.63,197.59,5.06075243]
[1760343446126,9.50240234,197.66,197.6,0.68]
[1760343446424,10.87647521,197.65,197.59,14.56315477]
[1760343446628,10.87647521,197.64,197.59,14.56315477]
[1760343446935,9.50240234,197.68,197.62,9.50240234]
[1760343447235,10.87647521,197.69,197.64,9.50240234]
[1760343447531,10.87647521,197.69,197.64,0.68]
[1760343447716,10.87647521,197.7,197.66,9.50240234]
[1760343447926,5.05623687,197.78,197.68,9.50240234]
[1760343448229,10.87647521,197.73,197.67,10.18240234]
[1760343448738,9.50240234,197.72,197.66,9.50240234]
[1760343449032,10.16240234,197.72,197.67,5.05893661]
[1760343449211,20.37887755,197.73,197.67,27.88868047]
[1760343449812,10.87647521,197.73,197.68,9.50240234]
[1760343450027,10.87647521,197.73,197.69,10.18240234]
[1760343450905,9.50240234,197.71,197.67,12.64734152]
[1760343451208,9.50240234,197.73,197.67,22.82974386]
[1760343451416,10.87647521,197.74,197.69,9.50240234]
[1760343451614,10.87647521,197.74,197.69,10.18240234]
[1760343451923,10.87647521,197.78,197.73,9.50240234]
[1760343452125,10.87647521,197.78,197.74,9.50240234]
[1760343452428,10.87647521,197.78,197.73,10.18240234]
[1760343452928,10.87647521,197.78,197.74,5.05714574]
[1760343453134,0.10594123,197.75,197.74,5.05714574]
[1760343453928,0.10594123,197.75,197.74,15.23954808]
[1760343455231,0.10594123,197.75,197.74,5.05714574]
[1760343457244,10.87647521,197.74,197.67,5.05893661]
[1760343457436,9.50240234,197.71,197.67,5.05893661]
[1760343457638,10.87647521,197.74,197.68,10.18240234]
[1760343457857,20.37887755,197.74,197.68,10.18240234]
[1760343458334,9.50240234,197.73,197.68,0.68]
[1760343458639,9.50240234,197.7,197.65,17.70785564]
[1760343458936,9.50240234,197.69,197.65,17.70785564]
[1760343459731,20.37887755,197.68,197.63,5.05984922]
[1760343459922,9.50240234,197.64,197.59,5.06098486]
[1760343460127,32.33647521,197.67,197.59,5.06098486]
[1760343460128,20.37887755,197.63,197.59,5.06098486]
[1760343460444,11.53647521,197.63,197.59,5.06098486]
[1760343460649,21.03887755,197.63,197.59,5.06098486]
[1760343460847,20.37887755,197.63,197.59,5.06098486]
[1760343461156,20.37887755,197.6,197.58,0.2]
[1760343461341,9.50240234,197.59,197.58,0.2]
[1760343461748,21.03887755,197.6,197.58,5.26123013]
[1760343461929,21.03887755,197.6,197.58,0.2]
[1760343462450,21.03887755,197.6,197.58,5.26123916]
[1760343462953,10.16240234,197.59,197.58,0.2]
[1760343463128,21.03887755,197.59,197.58,0.2]
[1760343463329,32.33647521,197.59,197.58,0.2]
[1760343463526,41.83887755,197.59,197.58,0.2]
[1760343465546,31.67647521,197.59,197.58,0.2]
[1760343466947,0.69,197.65,197.58,5.26124101]
[1760343467151,10.87647521,197.62,197.58,5.97124101]
[1760343467354,10.87647521,197.62,197.58,5.26124101]
[1760343468057,20.37887755,197.62,197.58,5.26124101]
[1760343468233,20.37887755,197.62,197.58,0.2]
[1760343468234,9.50240234,197.6,197.58,0.2]
[1760343468758,9.50240234,197.61,197.58,0.2]
[1760343468948,20.37887755,197.62,197.58,5.26122105]
[1760343469152,9.50240234,197.61,197.58,5.26122105]
[1760343470641,10.87647521,197.62,197.58,5.97122105]
[1760343471245,10.87647521,197.62,197.58,18.62432359]
[1760343471448,10.87647521,197.65,197.6,9.50240234]
[1760343471646,10.87647521,197.65,197.61,0.71]
[1760343472563,10.87647521,197.65,197.62,5.06021657]
[1760343473145,0.09912279,197.63,197.62,5.06021657]
[1760343474060,0.09912279,197.63,197.62,0.71]
[1760343475049,0.09912279,197.63,197.62,15.27261891]
[1760343476159,0.09912279,197.63,197.62,5.77021657]
[1760343476364,0.09912279,197.63,197.62,15.27261891]
[1760343476867,0.09912279,197.63,197.62,5.06021657]
[1760343477163,0.09912279,197.63,197.6,12.65152808]
[1760343477164,0.09912279,197.63,197.6,27.21465916]
[1760343477465,0.09912279,197.63,197.61,0.71]
[1760343478071,0.09912279,197.63,197.6,17.71225682]
[1760343478374,0.09912279,197.63,197.6,5.06072874]
[1760343478867,0.09912279,197.63,197.6,5.77072874]
[1760343479367,0.09912279,197.63,197.59,9.50240234]
[1760343479368,0.09912279,197.63,197.59,5.06098486]
[1760343479758,0.09912279,197.63,197.59,5.77098486]
[1760343479961,9.50240234,197.61,197.58,5.26122277]
[1760343480263,10.19240234,197.61,197.58,0.2]
[1760343480449,20.37887755,197.59,197.58,0.2]
[1760343480856,21.06887755,197.59,197.58,0.2]
[1760343481468,26.12986241,197.59,197.58,0.2]
[1760343481772,21.06887755,197.59,197.58,0.2]
[1760343482154,26.12986241,197.59,197.58,0.2]
[1760343489866,20.8,197.56,197.46,0.2]
[1760343490170,9.50240234,197.5,197.46,0.91]
[1760343490374,10.87647521,197.49,197.46,0.91]